fUSD/lending_fUSD_20250221
["ID","MTS","AMOUNT","RATE_DAILY","PERIOD"]
[353953911,1740165091578,-500.0,0.00011615,2]
[353953912,1740165091588,-901.21,0.00011615,2]
[353953913,1740165091598,-1222.37,0.00011615,2]
[353953914,1740165091608,-7412.83962459,0.00011616,2]
[353953915,1740165091618,-731.51,0.00011616,2]
[353953916,1740165091627,-500.0,0.00011616,2]
[353953917,1740165091640,-500.0,0.00011616,2]
[353953918,1740165091650,-500.0,0.00011616,2]
[353953919,1740165091659,-573.35,0.00011616,2]
[353953920,1740165091669,-503.02310713,0.00011616,2]
[353953921,1740165091678,-500.0,0.00011616,2]
[353953922,1740165091687,-500.0,0.00011616,2]
[353953923,1740165091697,-251.56940015,0.00011616,2]
[353953924,1740165091707,-500.0,0.00011616,2]
[353953925,1740165091716,-500.0,0.00011616,2]
[353953926,1740165091726,-500.0,0.00011616,2]
[353953927,1740165091735,-500.0,0.00011616,2]
[353953928,1740165091744,-500.0,0.00011616,2]
[353953929,1740165091753,-797.23,0.00011616,2]
[353953930,1740165091763,-677.02,0.00011616,2]
[353953931,1740165091772,-818.62,0.00011616,2]
[353953932,1740165091781,-840.96,0.00011616,2]
[353953933,1740165091790,-500.0,0.00011616,2]
[353953934,1740165091800,-500.0,0.00011616,2]
[353953935,1740165091809,-500.0,0.00011616,2]
[353953936,1740165091818,-500.0,0.00011616,2]
[353953937,1740165091827,-575.33,0.00011616,2]
[353953938,1740165091836,-500.0,0.00011616,2]
[353953939,1740165091845,-500.0,0.00011616,2]
[353953940,1740165091855,-500.0,0.00011616,2]
[353953941,1740165091864,-500.0,0.00011616,2]
[353953942,1740165091873,-500.0,0.00011616,2]
[353953943,1740165091885,-1742.76,0.00011616,2]
[353953944,1740165091894,-500.0,0.00011616,2]
[353953945,1740165091903,-500.0,0.00011616,2]
[353953946,1740165091913,-500.0,0.00011616,2]
[353953947,1740165091922,-565.11,0.00011616,2]
[353953948,1740165091934,-1160.38,0.00011616,2]
[353953949,1740165091945,-680.99,0.00011616,2]
[353953950,1740165091954,-500.0,0.00011616,2]
[353953951,1740165091965,-626.89,0.00011616,2]
[353953952,1740165091975,-500.0,0.00011616,2]
[353953953,1740165091984,-1029.96,0.00011616,2]
[353953954,1740165091993,-858.03,0.00011616,2]
[353953955,1740165092003,-502.89,0.00011616,2]
[353953956,1740165092015,-589.86,0.00011616,2]
[353953957,1740165092025,-500.0,0.00011616,2]
[353953958,1740165092036,-500.0,0.00011616,2]
[353953959,1740165092046,-500.0,0.00011616,2]
[353953960,1740165092056,-1194.6,0.00011616,2]
[353953961,1740165092066,-1339.27,0.00011616,2]
[353953962,1740165092075,-697.33,0.00011616,2]
[353953963,1740165092084,-589.93,0.00011616,2]
[353953964,1740165092094,-500.0,0.00011616,2]
[353953965,1740165092103,-479.2726925,0.00011616,2]
[353953966,1740165092113,-500.0,0.00011616,2]
[353953967,1740165092122,-500.0,0.00011616,2]
[353953968,1740165092133,-500.0,0.00011616,2]
[353953969,1740165092143,-1218.86,0.00011616,2]
[353953970,1740165092152,-500.0,0.00011616,2]
[353953971,1740165092161,-872.66,0.00011616,2]
[353953972,1740165092171,-847.49,0.00011616,2]
[353953973,1740165092180,-500.0,0.00011616,2]
[353953974,1740165092190,-1152.78,0.00011616,2]
[353953975,1740165092200,-500.0,0.00011616,2]
[353953976,1740165092209,-784.84,0.00011616,2]
[353953977,1740165092219,-811.75,0.00011616,2]
[353953978,1740165092230,-651.21,0.00011616,2]
[353953979,1740165092240,-500.0,0.00011616,2]
[353953980,1740165092249,-1602.77,0.00011616,2]
[353953981,1740165092259,-928.49,0.00011616,2]
[353953982,1740165092269,-500.0,0.00011616,2]
[353953983,1740165092279,-1453.54,0.00011616,2]
[353953984,1740165092288,-500.0,0.00011616,2]
[353953985,1740165092297,-1052.55,0.00011616,2]
[353953986,1740165092306,-654.12,0.00011616,2]
[353953987,1740165092316,-500.0,0.00011616,2]
[353953988,1740165092326,-600.59,0.00011616,2]
[353953989,1740165092335,-500.0,0.00011616,2]
[353953990,1740165092344,-1557.94,0.00011616,2]
[353953991,1740165092353,-600.19,0.00011616,2]
[353953992,1740165092365,-723.16,0.00011616,2]
[353953993,1740165092375,-500.0,0.00011616,2]
[353953994,1740165092386,-973.86,0.00011616,2]
[353953995,1740165092395,-627.0,0.00011616,2]
[353953996,1740165092404,-597.11,0.00011616,2]
[353953997,1740165092414,-1361.06,0.00011616,2]
[353953998,1740165092425,-500.0,0.00011616,2]
[353953999,1740165092434,-545.63,0.00011616,2]
[353954000,1740165092443,-684.05,0.00011616,2]
[353954001,1740165092453,-508.67,0.00011616,2]
[353954002,1740165092462,-865.33,0.00011616,2]
[353954003,1740165092472,-565.87,0.00011616,2]
[353954004,1740165092482,-612.75,0.00011616,2]
[353954005,1740165092491,-523.64,0.00011616,2]
[353954006,1740165092501,-961.54,0.00011616,2]
[353954007,1740165092511,-645.56,0.00011616,2]
[353954008,1740165092520,-842.47,0.00011616,2]
[353954009,1740165092530,-500.0,0.00011616,2]
[353954010,1740165092541,-500.0,0.00011616,2]
[353954011,1740165092551,-895.28,0.00011616,2]
[353954012,1740165092561,-500.0,0.00011616,2]
[353954013,1740165092570,-500.0,0.00011616,2]
[353954014,1740165092579,-793.32,0.00011616,2]
[353954015,1740165092589,-500.0,0.00011616,2]
[353954016,1740165092599,-514.87,0.00011616,2]
[353954017,1740165092609,-500.0,0.00011616,2]
[353954018,1740165092619,-1112.36,0.00011616,2]
[353954019,1740165092628,-500.0,0.00011616,2]
[353954020,1740165092640,-840.51,0.00011616,2]
[353954021,1740165092650,-691.0,0.00011616,2]
[353954022,1740165092660,-500.0,0.00011616,2]
[353954023,1740165092670,-1180.13,0.00011616,2]
[353954024,1740165092680,-844.88,0.00011616,2]
[353954025,1740165092690,-806.72,0.00011616,2]
[353954026,1740165092699,-500.0,0.00011616,2]
[353954027,1740165092708,-537.23,0.00011616,2]
[353954028,1740165092718,-892.59,0.00011616,2]
[353954029,1740165092727,-500.0,0.00011616,2]
[353954030,1740165092736,-806.21,0.00011616,2]
[353954031,1740165092746,-572.73,0.00011616,2]
[353954032,1740165092755,-500.0,0.00011616,2]
[353954033,1740165092765,-1563.66,0.00011616,2]
[353954034,1740165092775,-821.26,0.00011616,2]
[353954035,1740165092785,-500.0,0.00011616,2]
[353954036,1740165092795,-500.0,0.00011616,2]
[353954037,1740165092805,-940.42,0.00011616,2]
[353954038,1740165092814,-611.12,0.00011616,2]
[353954039,1740165092823,-500.0,0.00011616,2]
[353954040,1740165092833,-500.0,0.00011616,2]
[353954041,1740165092843,-500.0,0.00011616,2]
[353954042,1740165092852,-1780.54,0.00011616,2]
[353954043,1740165092862,-500.0,0.00011616,2]
[353954044,1740165092872,-500.0,0.00011616,2]
[353954045,1740165092882,-991.67,0.00011616,2]
[353954046,1740165092892,-500.0,0.00011616,2]
[353954047,1740165092902,-500.0,0.00011616,2]
[353954048,1740165092911,-528.9,0.00011616,2]
[353954049,1740165092921,-1402.78,0.00011616,2]
[353954050,1740165092931,-1033.27,0.00011616,2]
[353954051,1740165092941,-500.0,0.00011616,2]
[353954052,1740165092954,-500.0,0.00011616,2]
[353954053,1740165092964,-600.36,0.00011616,2]
[353954054,1740165092974,-500.0,0.00011616,2]
[353954055,1740165092984,-500.0,0.00011616,2]
[353954056,1740165092995,-882.31,0.00011616,2]
[353954057,1740165093004,-500.0,0.00011616,2]
[353954058,1740165093015,-970.65,0.00011616,2]
[353954059,1740165093026,-500.0,0.00011616,2]
[353954060,1740165093036,-500.0,0.00011616,2]
[353954061,1740165093045,-500.0,0.00011616,2]
[353954062,1740165093056,-550.33,0.00011616,2]
[353954063,1740165093066,-624.71,0.00011616,2]
[353954064,1740165093076,-500.0,0.00011616,2]
[353954065,1740165093087,-500.0,0.00011616,2]
[353954066,1740165093097,-500.0,0.00011616,2]
[353954067,1740165093107,-500.0,0.00011616,2]
[353954068,1740165093118,-1496.36,0.00011616,2]
[353954069,1740165093129,-500.0,0.00011616,2]
[353954070,1740165093141,-500.0,0.00011616,2]
[353954071,1740165093151,-552.04,0.00011616,2]
[353954072,1740165093161,-500.0,0.00011616,2]
[353954073,1740165093173,-795.52,0.00011616,2]
[353954074,1740165093183,-500.0,0.00011616,2]
[353954075,1740165093193,-529.57,0.00011616,2]
[353954076,1740165093204,-500.0,0.00011616,2]
[353954077,1740165093215,-512.15,0.00011616,2]
[353954078,1740165093227,-500.0,0.00011616,2]
[353954079,1740165093238,-500.0,0.00011616,2]
[353954080,1740165093251,-500.0,0.00011616,2]
[353954081,1740165093263,-1185.38,0.00011616,2]
[353954082,1740165093275,-672.16,0.00011616,2]
[353954083,1740165093285,-535.75,0.00011616,2]
[353954084,1740165093296,-500.0,0.00011616,2]
[353954085,1740165093307,-909.05,0.00011616,2]
[353954086,1740165093457,-500.0,0.00011616,2]
[353954087,1740165093471,-500.0,0.00011616,2]
[353954088,1740165093482,-1301.85,0.00011616,2]
[353954089,1740165093492,-500.0,0.00011616,2]
[353954090,1740165093503,-762.98,0.00011616,2]
[353954091,1740165093514,-500.0,0.00011616,2]
[353954092,1740165093526,-1086.19,0.00011616,2]
[353954093,1740165093537,-628.04,0.00011616,2]
[353954094,1740165093548,-586.00326442,0.00011616,2]
[353954095,1740165093558,-1272.05,0.00011616,2]
[353954096,1740165093570,-2241.53,0.00011616,2]
[353954097,1740165093582,-316.38418331,0.00011616,2]
[353954098,1740165093593,-500.0,0.00011616,2]
[353954099,1740165093604,-670.58,0.00011616,2]
[353954100,1740165093614,-500.0,0.00011616,2]
[353954101,1740165093625,-500.0,0.00011616,2]
[353954102,1740165093639,-500.0,0.00011616,2]
[353954103,1740165093651,-500.0,0.00011616,2]
[353954104,1740165093661,-500.0,0.00011616,2]
[353954105,1740165093672,-968.09,0.00011616,2]
[353954106,1740165093683,-501.94,0.00011616,2]
[353954107,1740165093695,-1124.07,0.00011616,2]
[353954108,1740165093706,-500.0,0.00011616,2]
[353954109,1740165093717,-1924.61,0.00011616,2]
[353954110,1740165093729,-503.84,0.00011616,2]
[353954111,1740165093739,-807.41,0.00011616,2]
[353954112,1740165093750,-500.0,0.00011616,2]
[353954113,1740165093759,-514.5738102,0.00011616,2]
[353954114,1740165093771,-709.07,0.00011616,2]
[353954115,1740165093782,-1488.79,0.00011616,2]
[353954116,1740165093794,-571.07,0.00011616,2]
[353954117,1740165093805,-500.0,0.00011616,2]
[353954118,1740165093816,-500.0,0.00011616,2]
[353954119,1740165093827,-500.0,0.00011616,2]
[353954120,1740165093838,-805.91,0.00011616,2]
[353954121,1740165093848,-500.0,0.00011616,2]
[353954122,1740165093859,-500.0,0.00011616,2]
[353954123,1740165093869,-1851.17,0.00011616,2]
[353954124,1740165093879,-761.43,0.00011616,2]
[353954125,1740165093896,-1326.72,0.00011616,2]
[353954126,1740165093906,-978.38,0.00011616,2]
[353954127,1740165093916,-906.21,0.00011616,2]
[353954128,1740165093926,-1904.8,0.00011616,2]
[353954129,1740165093941,-880.27,0.00011616,2]
[353954130,1740165093952,-571.47,0.00011616,2]
[353954131,1740165093963,-1097.77,0.00011616,2]
[353954132,1740165093975,-859.08,0.00011616,2]
[353954133,1740165093985,-934.53,0.00011616,2]
[353954134,1740165093996,-1546.56,0.00011616,2]
[353954135,1740165094007,-583.31,0.00011616,2]
[353954136,1740165094018,-1130.91,0.00011616,2]
[353954137,1740165094030,-500.0,0.00011616,2]
[353954138,1740165094040,-500.0,0.00011616,2]
[353954139,1740165094051,-585.41,0.00011616,2]
[353954140,1740165094061,-851.02,0.00011616,2]
[353954141,1740165094072,-500.0,0.00011616,2]
[353954142,1740165094084,-568.02,0.00011616,2]
[353954143,1740165094094,-887.3,0.00011616,2]
[353954144,1740165094104,-4138.33,0.00011616,2]
[353954145,1740165094114,-500.0,0.00011616,2]
[353954146,1740165094124,-1028.99,0.00011616,2]
[353954147,1740165094139,-500.0,0.00011616,2]
[353954148,1740165094150,-500.0,0.00011616,2]
[353954149,1740165094161,-500.0,0.00011616,2]
[353954150,1740165094171,-2434.92,0.00011616,2]
[353954151,1740165094182,-500.0,0.00011616,2]
[353954152,1740165094193,-1865.97,0.00011616,2]
[353954153,1740165094204,-864.63,0.00011616,2]
[353954154,1740165094214,-500.0,0.00011616,2]
[353954155,1740165094224,-2807.32,0.00011616,2]
[353954156,1740165094236,-2485.93,0.00011616,2]
[353954157,1740165094247,-1948.35,0.00011616,2]
[353954158,1740165094259,-1949.15,0.00011616,2]
[353954159,1740165094269,-1250.92,0.00011616,2]
[353954160,1740165094280,-1368.66,0.00011616,2]
[353954161,1740165094292,-520.29,0.00011616,2]
[353954162,1740165094304,-500.0,0.00011616,2]
[353954163,1740165094314,-1591.76,0.00011616,2]
[353954164,1740165094325,-500.0,0.00011616,2]
[353954165,1740165094337,-3268.34,0.00011616,2]
[353954166,1740165094348,-854.07,0.00011616,2]
[353954167,1740165094360,-500.0,0.00011616,2]
[353954168,1740165094371,-844.22,0.00011616,2]
[353954169,1740165094384,-1747.18,0.00011616,2]
[353954170,1740165094394,-1927.68,0.00011616,2]
[353954171,1740165094404,-2153.78,0.00011616,2]
[353954172,1740165094415,-500.0,0.00011616,2]
[353954173,1740165094439,-500.0,0.00011616,2]
[353954174,1740165094450,-2392.73,0.00011616,2]
[353954175,1740165094460,-648.85,0.00011616,2]
[353954176,1740165094471,-2224.89,0.00011616,2]
[353954177,1740165094481,-1746.45,0.00011616,2]
[353954178,1740165094490,-579.73,0.00011616,2]
[353954179,1740165094500,-2556.04,0.00011616,2]
[353954180,1740165094511,-500.0,0.00011616,2]
[353954181,1740165094521,-1670.15,0.00011616,2]
[353954182,1740165094531,-2603.67,0.00011616,2]
[353954183,1740165094542,-500.0,0.00011616,2]
[353954184,1740165094551,-500.0,0.00011616,2]
[353954185,1740165094561,-3612.24,0.00011616,2]
[353954186,1740165094572,-1657.83,0.00011616,2]
[353954187,1740165094581,-500.0,0.00011616,2]
[353954188,1740165094587,-1844.51,0.00011616,2]
[353954189,1740165094595,-500.0,0.00011616,2]
[353954190,1740165094602,-1834.55,0.00011616,2]
[353954191,1740165094612,-2535.0,0.00011616,2]
[353954192,1740165094621,-500.0,0.00011616,2]
[353954193,1740165094634,-518.53,0.00011616,2]
[353954194,1740165094644,-500.0,0.00011616,2]
[353954195,1740165094655,-597.04,0.00011616,2]
[353954196,1740165094666,-549.49,0.00011616,2]
[353954197,1740165094675,-2357.0,0.00011616,2]
[353954198,1740165094686,-845.32,0.00011616,2]
[353954199,1740165094697,-2963.81,0.00011616,2]
[353954200,1740165094707,-510.94,0.00011616,2]
[353954201,1740165094718,-2566.53,0.00011616,2]
[353954202,1740165094729,-1026.17,0.00011616,2]
[353954203,1740165094740,-1074.2,0.00011616,2]
[353954204,1740165094750,-550.84,0.00011616,2]
[353954205,1740165094762,-500.0,0.00011616,2]
[353954206,1740165094772,-515.71,0.00011616,2]
[353954207,1740165094783,-5103.01,0.00011616,2]
[353954208,1740165094792,-1908.26,0.00011616,2]
[353954209,1740165094803,-758.92,0.00011616,2]
[353954210,1740165094814,-500.0,0.00011616,2]
[353954211,1740165094824,-1293.25,0.00011616,2]
[353954212,1740165094835,-939.76,0.00011616,2]
[353954213,1740165094847,-500.0,0.00011616,2]
[353954214,1740165094857,-500.0,0.00011616,2]
[353954215,1740165094867,-2356.45,0.00011616,2]
[353954216,1740165094877,-966.62,0.00011616,2]
[353954217,1740165094889,-974.14,0.00011616,2]
[353954218,1740165094899,-1909.2,0.00011616,2]
[353954219,1740165094910,-570.66,0.00011616,2]
[353954220,1740165094920,-818.25,0.00011616,2]
[353954221,1740165094931,-520.34,0.00011616,2]
[353954222,1740165094941,-685.93,0.00011616,2]
[353954223,1740165094953,-2768.26,0.00011616,2]
[353954224,1740165094963,-584.87344488,0.00011616,2]
[353954225,1740165094973,-1604.23,0.00011616,2]
[353954226,1740165094982,-500.0,0.00011616,2]
[353954227,1740165094992,-2184.09,0.00011616,2]
[353954228,1740165095003,-505.95,0.00011616,2]
[353954229,1740165095013,-1998.1,0.00011616,2]
[353954230,1740165095027,-500.0,0.00011616,2]
[353954231,1740165095036,-646.23,0.00011616,2]
[353954232,1740165095048,-554.65,0.00011616,2]
[353954233,1740165095058,-1012.21,0.00011616,2]
[353954234,1740165095068,-2916.09,0.00011616,2]
[353954235,1740165095078,-500.0,0.00011616,2]
[353954236,1740165095087,-500.0,0.00011616,2]
[353954237,1740165095096,-862.38,0.00011616,2]
[353954238,1740165095105,-500.0,0.00011616,2]
[353954239,1740165095114,-568.27205026,0.00011616,2]
[353954240,1740165095124,-565.07,0.00011616,2]
[353954241,1740165095135,-500.0,0.00011616,2]
[353954242,1740165095145,-599.53,0.00011616,2]
[353954243,1740165095155,-829.35,0.00011616,2]
[353954244,1740165095165,-1959.3,0.00011616,2]
[353954245,1740165095175,-1594.81,0.00011616,2]
[353954246,1740165095184,-1779.68,0.00011616,2]
[353954247,1740165095194,-1091.45,0.00011616,2]
[353954248,1740165095204,-957.13,0.00011616,2]
[353954249,1740165095214,-1026.09,0.00011616,2]
[353954250,1740165095225,-1402.52,0.00011616,2]
[353954251,1740165095236,-829.08,0.00011616,2]
[353954252,1740165095245,-875.76,0.00011616,2]
[353954253,1740165095255,-500.0,0.00011616,2]
[353954254,1740165095265,-829.3,0.00011616,2]
[353954255,1740165095274,-1629.13,0.00011616,2]
[353954256,1740165095284,-1178.28,0.00011616,2]
[353954257,1740165095294,-781.38,0.00011616,2]
[353954258,1740165095304,-3393.01,0.00011616,2]
[353954259,1740165095314,-500.0,0.00011616,2]
[353954260,1740165095323,-500.0,0.00011616,2]
[353954261,1740165095333,-5355.55,0.00011616,2]
[353954262,1740165095343,-1183.94,0.00011616,2]
[353954263,1740165095352,-500.0,0.00011616,2]
[353954264,1740165095362,-579.29,0.00011616,2]
[353954265,1740165095373,-736.92,0.00011616,2]
[353954266,1740165095382,-2607.94,0.00011616,2]
[353954267,1740165095394,-709.36,0.00011616,2]
[353954268,1740165095403,-500.0,0.00011616,2]
[353954269,1740165095413,-500.0,0.00011616,2]
[353954270,1740165095422,-1636.76,0.00011616,2]
[353954271,1740165095450,-777.51,0.00011616,2]
[353954272,1740165095460,-2680.1,0.00011616,2]
[353954273,1740165095470,-500.0,0.00011616,2]
[353954274,1740165095481,-926.57,0.00011616,2]
[353954275,1740165095492,-1426.91,0.00011616,2]
[353954276,1740165095501,-1759.53,0.00011616,2]
[353954277,1740165095511,-500.0,0.00011616,2]
[353954278,1740165095522,-500.0,0.00011616,2]
[353954279,1740165095532,-3088.04,0.00011616,2]
[353954280,1740165095541,-500.0,0.00011616,2]
[353954281,1740165095550,-2102.27,0.00011616,2]
[353954282,1740165095561,-2473.99,0.00011616,2]
[353954283,1740165095571,-6791.49,0.00011616,2]
[353954284,1740165095581,-3023.06,0.00011616,2]
[353954285,1740165095591,-854.81,0.00011616,2]
[353954286,1740165095602,-2846.46,0.00011616,2]
[353954287,1740165095611,-1961.8,0.00011616,2]
[353954288,1740165095620,-1835.58,0.00011616,2]
[353954289,1740165095630,-1161.49,0.00011616,2]
[353954290,1740165095640,-996.96,0.00011616,2]
[353954291,1740165095651,-726.25,0.00011616,2]
[353954292,1740165095790,-741.19,0.00011616,2]
[353954293,1740165095801,-1065.12,0.00011616,2]
[353954294,1740165095811,-3844.61,0.00011616,2]
[353954295,1740165095821,-500.0,0.00011616,2]
[353954296,1740165095831,-1447.68,0.00011616,2]
[353954297,1740165095841,-500.0,0.00011616,2]
[353954298,1740165095852,-1663.66,0.00011616,2]
[353954299,1740165095862,-2061.17,0.00011616,2]
[353954300,1740165095872,-898.1,0.00011616,2]
[353954301,1740165095883,-1470.97,0.00011616,2]
[353954302,1740165095894,-500.0,0.00011616,2]
[353954303,1740165095904,-1165.22,0.00011616,2]
[353954304,1740165095914,-3837.3,0.00011616,2]
[353954305,1740165095924,-787.61,0.00011616,2]
[353954306,1740165095937,-1035.45,0.00011616,2]
[353954307,1740165095947,-5838.06973,0.00011616,2]
[353954308,1740165095956,-2088.16,0.00011616,2]
[353954309,1740165095966,-995.71,0.00011616,2]
[353954310,1740165095977,-1813.73,0.00011616,2]
[353954311,1740165095987,-5277.6,0.00011616,2]
[353954312,1740165095997,-3353.09,0.00011616,2]
[353954313,1740165096006,-2359.06,0.00011616,2]
[353954314,1740165096017,-1820.83,0.00011616,2]
[353954315,1740165096028,-1070.09,0.00011616,2]
[353954316,1740165096038,-500.0,0.00011616,2]
[353954317,1740165096047,-3197.57,0.00011616,2]
[353954318,1740165096057,-1508.14,0.00011616,2]
[353954319,1740165096067,-2115.76,0.00011616,2]
[353954320,1740165096076,-4937.96,0.00011616,2]
[353954321,1740165096087,-500.0,0.00011616,2]
[353954322,1740165096096,-820.83,0.00011616,2]
[353954323,1740165096106,-1969.18,0.00011616,2]
[353954324,1740165096116,-500.0,0.00011616,2]
[353954325,1740165096126,-4269.75,0.00011616,2]
[353954326,1740165096137,-1293.41,0.00011616,2]
[353954327,1740165096147,-1200.1,0.00011616,2]
[353954328,1740165096156,-816.69,0.00011616,2]
[353954329,1740165096166,-2982.14,0.00011616,2]
[353954330,1740165096176,-500.0,0.00011616,2]
[353954331,1740165096186,-500.0,0.00011616,2]
[353954332,1740165096197,-3642.37,0.00011616,2]
[353954333,1740165096207,-220.0,0.00011664,2]
[353954334,1740165096218,-500.0,0.00011697,2]
[353954335,1740165096228,-530.78,0.00011697,2]
[353954336,1740165096238,-957.52,0.00011697,2]
[353954337,1740165096247,-1681.69,0.00011697,2]
[353954338,1740165096257,-1370.31,0.00011697,2]
[353954339,1740165096267,-847.07,0.00011697,2]
[353954340,1740165096277,-939.95,0.00011697,2]
[353954341,1740165096286,-1190.44,0.00011697,2]
[353954342,1740165096295,-644.26,0.00011697,2]
[353954343,1740165096305,-852.88,0.00011697,2]
[353954344,1740165096314,-1471.32,0.00011697,2]
[353954345,1740165096324,-678.67,0.00011697,2]
[353954346,1740165096333,-2030.12,0.00011697,2]
[353954347,1740165096343,-626.47,0.00011697,2]
[353954348,1740165096353,-1690.47,0.00011697,2]
[353954349,1740165096362,-865.6,0.00011697,2]
[353954350,1740165096373,-826.13,0.00011697,2]
[353954351,1740165096384,-683.0,0.00011697,2]
[353954352,1740165096395,-2042.4,0.00011697,2]
[353954353,1740165096405,-1525.59,0.00011697,2]
[353954354,1740165096415,-2138.39,0.00011697,2]
[353954355,1740165096426,-982.38,0.00011697,2]
[353954356,1740165096436,-2241.41,0.00011697,2]
[353954357,1740165096446,-730.28,0.00011697,2]
[353954358,1740165096457,-1227.29,0.00011697,2]
[353954359,1740165096467,-500.0,0.00011697,2]
[353954360,1740165096477,-200.43008806,0.00011697,2]
[353954361,1740165096486,-500.0,0.00011697,2]
[353954362,1740165096495,-901.21,0.00011697,2]
[353954363,1740165096505,-1222.37,0.00011697,2]
[353954364,1740165096515,-731.51,0.00011698,2]
[353954365,1740165096524,-500.0,0.00011698,2]
[353954366,1740165096534,-500.0,0.00011698,2]
[353954367,1740165096543,-500.0,0.00011698,2]
[353954368,1740165096552,-573.35,0.00011698,2]
[353954369,1740165096562,-500.0,0.00011698,2]
[353954370,1740165096572,-500.0,0.00011698,2]
[353954371,1740165096581,-500.0,0.00011698,2]
[353954372,1740165096590,-500.0,0.00011698,2]
[353954373,1740165096599,-500.0,0.00011698,2]
[353954374,1740165096609,-500.0,0.00011698,2]
[353954375,1740165096618,-500.0,0.00011698,2]
[353954376,1740165096627,-797.23,0.00011698,2]
[353954377,1740165096637,-677.02,0.00011698,2]
[353954378,1740165096647,-818.62,0.00011698,2]
[353954379,1740165096656,-840.96,0.00011698,2]
[353954380,1740165096665,-500.0,0.00011698,2]
[353954381,1740165096675,-500.0,0.00011698,2]
[353954382,1740165096685,-500.0,0.00011698,2]
[353954383,1740165096694,-500.0,0.00011698,2]
[353954384,1740165096704,-575.33,0.00011698,2]
[353954385,1740165096713,-500.0,0.00011698,2]
[353954386,1740165096723,-500.0,0.00011698,2]
[353954387,1740165096737,-500.0,0.00011698,2]
[353954388,1740165096756,-500.0,0.00011698,2]
[353954389,1740165096773,-500.0,0.00011698,2]
[353954390,1740165096793,-1742.76,0.00011698,2]
[353954391,1740165096808,-500.0,0.00011698,2]
[353954392,1740165096825,-500.0,0.00011698,2]
[353954393,1740165096842,-500.0,0.00011698,2]
[353954394,1740165096860,-565.11,0.00011698,2]
[353954395,1740165096879,-1160.38,0.00011698,2]
[353954396,1740165096898,-680.99,0.00011698,2]
[353954397,1740165096916,-500.0,0.00011698,2]
[353954398,1740165096933,-626.89,0.00011698,2]
[353954399,1740165096949,-500.0,0.00011698,2]
[353954400,1740165096967,-1029.96,0.00011698,2]
[353954401,1740165096984,-858.03,0.00011698,2]
[353954402,1740165097002,-502.89,0.00011698,2]
[353954403,1740165097016,-589.86,0.00011698,2]
[353954404,1740165097033,-466.02748092,0.00011698,2]
[353954405,1740165097048,-500.0,0.00011698,2]
[353954406,1740165097064,-500.0,0.00011698,2]
[353954407,1740165097079,-1194.6,0.00011698,2]
[353954408,1740165097095,-1339.27,0.00011698,2]
[353954409,1740165097112,-697.33,0.00011698,2]
[353954410,1740165097127,-589.93,0.00011698,2]